[Event "European Women-ch 2023"]
[Site "Petrovac"]
[Date "2023.03.23"]
[Round "6.16"]
[White "Koljevic, Nikolina"]
[Black "Humbatova, Nazli"]
[Result "1-0"]
[ECO "B40"]
[WhiteElo "2042"]
[BlackElo "1737"]
[Annotator "TA"]
[PlyCount "117"]
[EventDate "2023.03.15"]
[EventType "swiss"]
[EventCountry "MNE"]
[SourceTitle "playchess.com"]
[Source "ChessBase"]
[SourceQuality "1"]
[TimeControl "40/5400+30:1800+30"]

{[%evp 9,117,0,0,0,3,-21,0,0,6,0,4,0,0,-16,-19,-16,-20,-52,-51,-67,-48,-52,-11,-16,0,0,0,0,66,0,37,-22,28,-34,63,50,218,218,476,479,468,487,475,333,330,325,334,326,318,304,294,286,355,356,401,402,403,393,351,296,275,276,399,393,450,454,427,444,531,533,506,235,263,247,255,262,253,260,228,213,914,900,901,771,741,732,737,664,6187,12791,6307,6183,6079,5546,5097,3726,29985,29986,29986,29986,29986,29987,29987,29988,29988,29989,29990,29991,29991,29992]} 1. e4 {[%emt 0:00:03]} e6 {[%emt 0:01:07]} 2. d3 {[%emt 0:00:34]} d5 {[%emt 0:00:10]} 3. Nd2 {[%emt 0:00:06]} c5 {[%emt 0:00:18]} 4. Ngf3 {[%emt 0:00:38]} g6 {[%emt 0:02:56]} 5. g3 {[%emt 0:01:41]} Bg7 {[%emt 0:00:10]} 6. Bg2 {[%emt 0:00:16]} Ne7 {[%emt 0:02:32]} 7. h4 {[%emt 0:03:34]} h5 {[%emt 0:05:05]} 8. O-O {[%emt 0:00:56] The position is equal.} Nbc6 {[%emt 0:01:04]} 9. Re1 {[%emt 0:07:52]} O-O {[%emt 0:07:07]} 10. c3 {[%emt 0:05:00]} b6 {[%emt 0:12:07]} 11. Qc2 {[%emt 0:02:27]} Bb7 {[%emt 0:05:50]} 12. Nf1 {[%emt 0:04:00]} d4 {[%emt 0:22:18]} 13. c4 {[%emt 0:17:58]} e5 {[%emt 0:02:15]} 14. Ng5 {[%emt 0:04:26]} Bc8 {[%emt 0:02:08]} 15. f4 {[%emt 0:04:04]} f6 {[%emt 0:00:23]} 16. Nf3 {[%emt 0:01:36]} Bd7 {[%emt 0:01:41]} 17. N1h2 {[%emt 0:05:29]} Nb4 {[%emt 0:06:13]} 18. Qe2 {[%emt 0:03:38]} a5 {[%emt 0:00:52]} (18... Nbc6 $11) 19. Rf1 {[%emt 0:07:32]} (19. fxe5 $14 fxe5 20. Rf1 (20. Bg5 Na6 $11)) 19... a4 {[%emt 0:01:33]} 20. Bd2 {[%emt 0:01:25]} (20. fxe5 $14 fxe5 21. a3) 20... Nec6 {[%emt 0:02:32]} ({Black should try} 20... a3 21. Bxb4 cxb4) 21. a3 {[%emt 0:01:55]} (21. fxe5 $11 Nxe5 22. Nxe5 (22. Bxb4 cxb4 23. Nxd4 Qc7 $15) 22... fxe5 23. Bg5) 21... Na6 {[%emt 0:00:14]} (21... Nc2 $15 22. Rac1 Ne3 23. Bxe3 dxe3) 22. f5 $14 {[%emt 0:01:59]} gxf5 {[%emt 0:06:09] This move loses the game for Black.} (22... Qe8 $1 $14) 23. exf5 $18 {[%emt 0:00:03]} Rb8 $2 {[%emt 0:04:21] [#]} (23... Nc7 24. Ng5 Qe8) 24. Ng5 $1 {[%emt 0:06:18][%mdl 512]} Ne7 {[%emt 0:02:33]} (24... e4 25. Bxe4) 25. Qxh5 {[%emt 0:08:40][%csl Gg5][%cal Rh5h7]} fxg5 {[%emt 0:00:14]} 26. Bxg5 {[%emt 0:04:32]} Qe8 {[%emt 0:01:07]} (26... Rxf5 $2 27. Rxf5 Be8 28. Qg4 $18) 27. Qxe8 {[%emt 0:01:24]} Rbxe8 {[%emt 0:02:35]} 28. f6 {[%emt 0:00:39]} Bxf6 {[%emt 0:00:31]} 29. Rxf6 {[%emt 0:00:09]} (29. Bxf6 Nf5 $16) 29... Rxf6 {[%emt 0:01:01]} 30. Bxf6 {[%emt 0:00:04]} Nf5 {[%emt 0:02:04]} 31. Bd5+ {[%emt 0:02:43]} Be6 {[%emt 0:00:08]} 32. Bc6 {[%emt 0:00:17] This pair of bishops is nice.} (32. Bxe5 Bxd5 33. Ng4 Rxe5 $16) 32... Rf8 {[%emt 0:01:07]} 33. Bxe5 {[%emt 0:00:08]} Nb8 {[%emt 0:01:42]} 34. Bxb8 {[%emt 0:02:59]} Rxb8 {[%emt 0:00:05]} 35. Re1 {[%emt 0:00:28]} (35. Bxa4 $6 Nxg3 36. Nf3 Ne2+ 37. Kh2 Rf8 $16) 35... Bf7 {[%emt 0:01:09]} (35... Kf7 {was called for.} 36. Nf3 (36. Bxa4 Nxg3 37. Nf3 Bf5 $18) 36... Ne3 37. Ng5+ (37. Bxa4 Bf5 $18) 37... Kf6 38. Nxe6 (38. Bxa4 Bf5 $14) 38... Kxe6 39. Bxa4 Kd6) 36. Re5 {[%emt 0:00:44]} (36. Bxa4 Nxg3 37. Ng4 Nh5 $18) 36... Ne3 {[%emt 0:00:21]} 37. Nf1 {[%emt 0:01:03]} (37. Bxa4 Bg6 $16) 37... Nd1 {[%emt 0:00:40]} 38. Re2 {[%emt 0:01:02]} (38. Bxa4 Nxb2 39. Bb5 Nxd3 $11) 38... Bh5 {[%emt 0:00:06]} 39. g4 {[%emt 0:00:13]} Bg6 {[%emt 0:00:30]} 40. Bd5+ {[%emt 0:00:00]} (40. Bxa4 $142 Bxd3 41. Bxd1) 40... Kh8 {[%emt 0:00:00]} 41. Be4 {[%emt 0:12:48]} Bxe4 {[%emt 0:10:58]} 42. dxe4 {[%emt 0:03:12][%cal Bd3e4,Be4e5,Be5e6][%mdl 4128] Endgame Black must now prevent e5. KRN-KRN} (42. Rxe4 Nxb2 43. g5 Nxd3 $11) 42... b5 {[%emt 0:00:11]} 43. cxb5 {[%emt 0:03:37]} (43. Rd2 bxc4 44. Rxd1 Rxb2 $14) 43... Rxb5 {[%emt 0:00:10]} 44. e5 $1 {[%emt 0:00:03] e6 is the strong threat.} Rxb2 $2 {[%emt 0:10:50]} (44... d3 45. Re4 Nxb2) 45. Rxb2 {[%emt 0:02:00]} Nxb2 {[%emt 0:00:03] KN-KN} 46. e6 {[%emt 0:00:01]} Kg7 {[%emt 0:06:26]} 47. h5 {[%emt 0:01:47][%cal Bh4h5,Bh5h6,Bh6h7][%mdl 32] Intending h6+! and mate.} Nc4 {[%emt 0:01:56]} 48. Ng3 {[%emt 0:05:13][%cal Oh5h6] aiming for h6+!} Kf6 {[%emt 0:03:16]} 49. h6 $1 {[%emt 0:01:48] White wants to mate with h7.} ({Less strong is} 49. Ne4+ Kxe6 50. Nxc5+ Ke5 $16) 49... Ne5 {[%emt 0:03:41] [#]} 50. h7 $1 {[%emt 0:00:37]} Ng6 {[%emt 0:00:47] [#]} 51. Nh5+ $1 {[%emt 0:00:17]} ({Not} 51. Ne4+ Kxe6 52. Nxc5+ Kf7 53. Nxa4 Kg7 $18) 51... Ke7 {[%emt 0:00:11] [#]} 52. Nf4 $1 {[%emt 0:00:43][%mdl 576] Deflection, Promotion} Nh8 {[%emt 0:00:05]} (52... Nxf4 53. h8=Q) 53. g5 {[%emt 0:00:52][%cal Bg4g5,Bg5g6,Bg6g7][%mdl 32] White mates.} c4 {[%emt 0:00:41]} 54. Kf2 {[%emt 0:00:32]} c3 {[%emt 0:00:50]} 55. Ke2 {[%emt 0:00:08]} c2 {[%emt 0:00:38]} 56. Kd2 {[%emt 0:00:04]} d3 {[%emt 0:00:03]} 57. g6 {[%emt 0:00:13]} (57. Kxd3 $2 c1=Q 58. Nd5+ Kxe6 $19) 57... Kf8 {[%emt 0:00:28]} 58. Kc1 {[%emt 0:01:22]} (58. Kxd3 $2 {too greedy.} c1=Q 59. e7+ Kxe7 $19) 58... Ke7 {[%emt 0:01:06]} 59. g7 {[%emt 0:00:07] Artfully played by Koljevic.   Weighted Error Value: White=0.19 (very precise) /Black=0.35} 1-0

[Event "European Women-ch 2023"]
[Site "Petrovac"]
[Date "2023.03.23"]
[Round "6.16"]
[White "Golsta, Ramona"]
[Black "Sliwicka, Alicja"]
[Result "0-1"]
[ECO "E94"]
[WhiteElo "1760"]
[BlackElo "2272"]
[Annotator "TA"]
[PlyCount "54"]
[EventDate "2023.03.15"]
[EventType "swiss"]
[EventCountry "MNE"]
[SourceTitle "playchess.com"]
[Source "ChessBase"]
[SourceQuality "1"]
[TimeControl "40/5400+30:1800+30"]

{[%evp 17,54,35,63,-105,-108,-102,-111,-155,-147,-138,-152,-146,-143,-232,-234,-384,-376,-432,-432,-781,-779,-823,-817,-820,-823,-803,-811,-1284,-1276,-1421,-1446,-1493,-1577,-1563,-1533,-1478,-1351,-1414,-1267]} 1. d4 {[%emt 0:00:03]} Nf6 {[%emt 0:00:05]} 2. c4 {[%emt 0:00:07]} g6 {[%emt 0:00:07]} 3. Nc3 {[%emt 0:00:08]} Bg7 {[%emt 0:00:06]} 4. e4 {[%emt 0:00:23]} d6 {[%emt 0:00:05]} 5. Nf3 {[%emt 0:00:34]} O-O {[%emt 0:01:08]} 6. Be2 {[%emt 0:00:49]} Nbd7 {[%emt 0:04:11]} 7. O-O {[%emt 0:00:50]} e5 {[%emt 0:00:11]} 8. Qc2 {[%emt 0:01:34]} Re8 {[%emt 0:08:15]} 9. Rd1 {[%emt 0:00:45]} c6 {[%emt 0:01:24]} 10. Ne1 $2 {[%emt 0:27:45]} (10. d5 $14 {stays ahead.}) 10... exd4 $17 {[%emt 0:07:30]} 11. Rxd4 {[%emt 0:02:42] [#]} Nd5 {[%emt 0:12:34][%mdl 512] Repels Be3} 12. Rd1 {[%emt 0:08:44] Black is better.} (12. Rxd5 cxd5) 12... Nxc3 {[%emt 0:01:47]} 13. bxc3 {[%emt 0:00:06]} Nc5 {[%emt 0:02:01]} 14. f3 {[%emt 0:03:39]} Qa5 {[%emt 0:02:55] Black is more active.} 15. Kf1 {[%emt 0:18:36] [#]} (15. Be3 $17) 15... f5 $1 $19 {[%emt 0:01:56][%cal Bf7f5,Bf5e4,Be4e3][%mdl 32]} (15... Bxc3 16. Bd2 Bb4 17. Bxb4 Qxb4 18. Qd2 Qxd2 19. Rxd2 $15) (15... Qxc3 16. Qxc3 Bxc3 17. Rb1) 16. Rxd6 {[%emt 0:05:32]} (16. Be3 $142) 16... fxe4 {[%emt 0:00:50]} (16... Bxc3 17. Bd2 Bxd2 18. Qxd2 Qxd2 19. Rxd2 $17) (16... Qxc3 $2 17. Qxc3 Bxc3 18. Rb1 $17) 17. f4 {[%emt 0:13:33]} e3 {[%emt 0:02:47] White must now prevent ...Bf5. Black is clearly winning.} (17... Bxc3 $2 18. Bd2 Bxd2 19. Qxd2 Qxd2 20. Rxd2 $19) (17... Qxc3 $2 18. Rb1 $19) 18. g4 {[%emt 0:02:40] Prevents Bf5} (18. Bb2 $142) 18... Qc7 {[%emt 0:01:18]} 19. Qd1 {[%emt 0:02:59]} Ne4 {[%emt 0:00:22]} 20. c5 {[%emt 0:01:10]} Qf7 {[%emt 0:05:43]} 21. Qb3 {[%emt 0:04:03]} Nxd6 {[%emt 0:00:20]} (21... Nxc5 22. Qxf7+ Kxf7 23. Ba3 $17) (21... Bxc3 22. Bc4 $17) 22. cxd6 {[%emt 0:00:17]} Be6 {[%emt 0:00:08][%mdl 64] Skewer} 23. Qb4 {[%emt 0:01:31]} a5 {[%emt 0:00:13][%mdl 64] Deflection} ({Weaker is} 23... Bxa2 24. Rxa2 Kh8 25. Ra5 $14) 24. Qc5 {[%emt 0:01:03]} Qxf4+ {[%emt 0:03:37]} ({Inferior is} 24... Bxa2 25. Rxa2 Re4 26. Rc2 (26. Rxa5 $2 {loses.} Rxa5 27. Qxa5 Rxf4+ 28. Nf3 Rxf3+ 29. Ke1 Qb3 $19) 26... Qxf4+ 27. Bf3 $17) 25. Nf3 {[%emt 0:00:08]} Bd5 {[%emt 0:01:35] aiming for ...Re6.} 26. d7 {[%emt 0:01:17]} Rf8 {[%emt 0:01:02][%cal Of4g4] ...Qxg4! is the strong threat.} 27. Bxe3 {[%emt 0:01:33]} Qxg4 {[%emt 0:00:23] White did not feel at home in the position after the opening. Magnificent play by Sliwicka!   Weighted Error Value: White=1.10/Black=0.16 (very precise)} 0-1

[Event "European Women-ch 2023"]
[Site "Petrovac"]
[Date "2023.03.23"]
[Round "6.17"]
[White "Mammadova, Gulnar"]
[Black "Kobak, Polina"]
[Result "1-0"]
[ECO "A20"]
[WhiteElo "2358"]
[BlackElo "1815"]
[Annotator "TA"]
[PlyCount "93"]
[EventDate "2023.03.15"]
[EventType "swiss"]
[EventCountry "MNE"]
[SourceTitle "playchess.com"]
[Source "ChessBase"]
[SourceQuality "1"]
[TimeControl "40/5400+30:1800+30"]

{[%evp 9,93,27,20,31,33,31,38,34,52,38,28,27,43,52,52,54,67,52,61,50,56,50,64,54,53,52,110,66,173,170,171,168,172,172,152,154,170,181,173,169,168,158,158,158,186,175,172,148,277,175,200,198,187,190,185,188,290,281,285,245,216,130,133,126,189,178,181,183,195,202,202,202,201,202,198,198,302,302,318,311,340,326,330,322,366,368]} 1. c4 {[%emt 0:00:03]} e5 {[%emt 0:00:10]} 2. g3 {[%emt 0:00:06]} c6 {[%emt 0:00:09]} 3. Nf3 {[%emt 0:00:26]} e4 {[%emt 0:00:27]} 4. Nd4 {[%emt 0:00:11]} d5 {[%emt 0:00:43]} 5. cxd5 {[%emt 0:00:22]} cxd5 {[%emt 0:00:15]} 6. d3 {[%emt 0:00:40]} Bc5 {[%emt 0:07:14]} 7. Nb3 {[%emt 0:02:17]} Bb4+ {[%emt 0:00:42]} 8. Bd2 {[%emt 0:01:17] White is slightly better.} Qe7 {[%emt 0:06:21]} 9. dxe4 {[%emt 0:05:49]} dxe4 {[%emt 0:03:18]} 10. Bg2 {[%emt 0:07:34]} Nf6 {[%emt 0:01:42]} 11. O-O {[%emt 0:06:27]} Bxd2 {[%emt 0:00:47]} 12. Qxd2 {[%emt 0:01:10]} ({Much worse is} 12. N1xd2 O-O $11) 12... O-O {[%emt 0:00:50]} 13. Nc3 {[%emt 0:00:15]} Nc6 {[%emt 0:05:33]} 14. Rfd1 {[%emt 0:06:22]} Bf5 {[%emt 0:07:35]} 15. Qg5 {[%emt 0:04:16]} Bg6 {[%emt 0:03:03]} 16. Qc5 {[%emt 0:00:56] White is much more active. The black rooks are badly placed.} Rfe8 {[%emt 0:05:00]} 17. Rac1 {[%emt 0:03:03]} (17. Qxe7 {simplifies} Rxe7 18. Nd4 Nxd4 19. Rxd4 Bf5 20. Rad1) 17... e3 {[%emt 0:11:18]} (17... Rad8 $14) 18. fxe3 {[%emt 0:03:15]} Ne4 {[%emt 0:19:48]} ({Better is} 18... Qe6 $14) 19. Qxe7 {[%emt 0:04:56]} Rxe7 {[%emt 0:00:04] [#]} 20. Bxe4 $1 {[%emt 0:01:41]} Bxe4 {[%emt 0:00:05]} 21. Nc5 {[%emt 0:00:34]} f5 {[%emt 0:06:59]} 22. b3 {[%emt 0:02:00]} Ne5 {[%emt 0:01:51]} 23. N5xe4 {[%emt 0:07:18]} fxe4 {[%emt 0:00:06]} 24. h3 {[%emt 0:00:10] Wards off Ng4} ({Much less strong is} 24. Nxe4 Ng4 $16) 24... Nc6 {[%emt 0:04:07]} 25. Rd6 {[%emt 0:02:35]} Rf8 {[%emt 0:01:31]} 26. Rcd1 {[%emt 0:02:33]} Rf5 {[%emt 0:02:52]} 27. Nd5 {[%emt 0:03:40]} Ref7 {[%emt 0:01:12]} 28. b4 {[%emt 0:02:46] aiming for b5.} g5 {[%emt 0:02:04]} (28... h5 $16 {might work better.} 29. b5 Ne5) 29. Re6 {[%emt 0:02:30]} Re5 {[%emt 0:03:36]} 30. Nf6+ {[%emt 0:01:31]} Kg7 {[%emt 0:00:49]} 31. Rxe5 {[%emt 0:00:10]} Nxe5 {[%emt 0:00:06]} 32. Nxe4 $18 {[%emt 0:00:03][%mdl 4096] Endgame KRN-KRN} h6 {[%emt 0:00:24]} (32... Nc4 $142 33. Rc1 (33. Nxg5 Nxe3 34. Rc1 Re7 $18) 33... Nxe3 34. Nxg5 Re7) 33. Nd6 {[%emt 0:02:51]} Rd7 {[%emt 0:01:23]} 34. Nf5+ {[%emt 0:01:47]} Kg6 {[%emt 0:00:08]} 35. Nd4 {[%emt 0:04:19]} Nc4 {[%emt 0:01:44]} 36. Kf2 {[%emt 0:00:05]} b5 {[%emt 0:00:28]} (36... h5 $16 37. g4 a6 38. gxh5+ Kxh5) 37. g4 {[%emt 0:01:09]} a6 {[%emt 0:00:58]} 38. Rc1 {[%emt 0:01:35]} Rd6 {[%emt 0:00:38] [#]} 39. a4 $1 {[%emt 0:03:30]} Rf6+ {[%emt 0:00:56]} 40. Nf3 {[%emt 0:00:00]} Re6 {[%emt 0:00:00]} 41. axb5 {[%emt 0:01:15]} axb5 {[%emt 0:04:06]} 42. Rc3 {[%emt 0:00:31]} Rf6 {[%emt 0:01:26]} (42... Ra6 $142 43. Nd4 Ra4 44. Nxb5 Rxb4) 43. Rd3 {[%emt 0:01:47]} Re6 {[%emt 0:01:51]} 44. Rd5 {[%emt 0:05:00]} Na3 {[%emt 0:05:47]} 45. Nd4 {[%emt 0:00:41]} Rf6+ {[%emt 0:00:49]} 46. Nf5 {[%emt 0:01:02]} Rb6 {[%emt 0:00:45]} 47. Rd7 {[%emt 0:04:59] Weighted Error Value: White=0.09 (flawless) /Black=0.23 (precise)} 1-0

[Event "European Women-ch 2023"]
[Site "Petrovac"]
[Date "2023.03.23"]
[Round "6.17"]
[White "Aydin, Gulenay"]
[Black "Bassari, Senem Gul"]
[Result "1-0"]
[ECO "B90"]
[WhiteElo "2039"]
[BlackElo "1524"]
[Annotator "TA"]
[PlyCount "93"]
[EventDate "2023.03.15"]
[EventType "swiss"]
[EventCountry "MNE"]
[SourceTitle "playchess.com"]
[Source "ChessBase"]
[SourceQuality "1"]
[TimeControl "40/5400+30:1800+30"]

{[%evp 10,93,27,7,33,22,31,23,53,52,69,45,41,43,35,20,99,104,125,79,89,100,106,81,90,73,88,73,118,111,143,138,130,124,126,118,126,-154,223,178,174,178,173,129,151,93,210,185,204,180,194,115,270,291,385,386,385,376,423,433,487,483,479,452,454,462,489,478,996,994,1345,955,832,719,29967,29972,6724,5718,29970,7665,2856,2632,2457,2445,29980,29981]} 1. e4 {[%emt 0:00:11]} c5 {[%emt 0:00:10]} 2. Nf3 {[%emt 0:00:07]} d6 {[%emt 0:00:11]} 3. d4 {[%emt 0:00:07]} cxd4 {[%emt 0:00:09]} 4. Nxd4 {[%emt 0:00:02]} Nf6 {[%emt 0:00:20]} 5. Nc3 {[%emt 0:00:03]} a6 {[%emt 0:00:20]} 6. a3 {[%emt 0:00:07]} g6 {[%emt 0:05:24]} (6... e5 $5 {[%cal Re5d4]} 7. Nb3 Be6 $11) 7. f3 {[%emt 0:00:32]} Bg7 {[%emt 0:01:53]} 8. Be3 {[%emt 0:00:08]} b5 {[%emt 0:04:14] White has an edge.} 9. Qd2 {[%emt 0:01:35]} h5 {[%emt 0:06:48]} 10. Be2 {[%emt 0:01:28]} Bb7 {[%emt 0:05:30]} 11. O-O {[%emt 0:01:19]} Nbd7 {[%emt 0:11:13]} 12. a4 {[%emt 0:05:16]} bxa4 {[%emt 0:04:38]} (12... b4 $11 13. Na2 d5) 13. Rxa4 $16 {[%emt 0:01:32]} h4 {[%emt 0:12:47]} 14. h3 {[%emt 0:14:57] White is more active.} (14. Nb3 $142) 14... Nh5 {[%emt 0:17:05]} 15. Rfa1 {[%emt 0:01:32][%cal Re2a6]} Nc5 {[%emt 0:03:32]} 16. R4a3 {[%emt 0:00:33]} Ng3 {[%emt 0:01:34]} 17. Bc4 {[%emt 0:01:04]} (17. Nb3 {simplifies} Nxb3 18. Rxb3 Nxe2+ 19. Qxe2 Qc7 20. Ra4) 17... Rc8 {[%emt 0:07:49]} 18. Bd5 {[%emt 0:01:52]} Qb6 {[%emt 0:04:07]} 19. Nb3 {[%emt 0:01:23] Nxc5 would be deadly.} Qc7 {[%emt 0:06:02] [#]} 20. Nxc5 $1 {[%emt 0:03:48]} dxc5 {[%emt 0:01:02]} 21. Rb3 {[%emt 0:29:29]} Bxc3 {[%emt 0:03:13]} 22. Rxc3 {[%emt 0:05:31]} Bxd5 {[%emt 0:01:39]} 23. Rxc5 $2 {[%emt 0:01:54][%mdl 8192] [#]} (23. exd5 $16 {is necessary to keep the advantage.} Qb6 24. Rb3) 23... Qb8 $2 {[%emt 0:01:43]} 24. Rxc8+ {[%emt 0:05:18]} (24. Qxd5 O-O) 24... Qxc8 {[%emt 0:00:02]} 25. exd5 {[%emt 0:03:09]} O-O {[%emt 0:00:46]} 26. Bf2 {[%emt 0:00:20]} Nf5 {[%emt 0:00:29]} 27. Ra4 {[%emt 0:02:49]} ({White should play} 27. Qe2) 27... Qb7 {[%emt 0:00:45]} (27... Rd8 $16) 28. Rb4 {[%emt 0:01:11]} ({Don't do} 28. Bxh4 $6 Qxb2 29. Be1 Rc8 $14) 28... Qd7 {[%emt 0:00:31]} 29. Bxh4 {[%emt 0:01:49]} Rd8 {[%emt 0:00:25]} 30. Re4 {[%emt 0:02:22]} (30. Be1 $18) 30... Qa7+ $2 {[%emt 0:00:35]} (30... Nxh4 $16 31. Rxh4 Qxd5 32. Qxd5 (32. Qh6 Qc5+ 33. Kh2 Qe5+ 34. f4 Qg7 $16) 32... Rxd5) 31. Bf2 $18 {[%emt 0:01:35]} Qb7 {[%emt 0:00:29]} 32. c4 {[%emt 0:01:23]} Nd6 {[%emt 0:00:28]} 33. Rd4 {[%emt 0:04:03]} Nf5 {[%emt 0:00:31]} 34. Rd3 {[%emt 0:00:39]} Rb8 {[%emt 0:00:25]} 35. b3 {[%emt 0:00:26]} Qd7 {[%emt 0:00:33]} 36. g4 {[%emt 0:00:33]} Ng7 {[%emt 0:00:28]} 37. Bd4 {[%emt 0:00:28]} Qd6 {[%emt 0:00:27]} 38. Kg2 {[%emt 0:00:20]} ({Resist} 38. Qh6 f6 39. Kg2 Qa3 $18) 38... Ne8 {[%emt 0:00:34]} (38... f6 $142 39. Bf2 Qb4) 39. Qh6 {[%emt 0:02:48][%csl Gd4][%cal Rh6h8]} Nf6 {[%emt 0:00:32]} 40. g5 {[%emt 0:00:00]} Qf4 {[%emt 0:00:00]} 41. Be3 {[%emt 0:03:04]} Qf5 {[%emt 0:05:22]} 42. gxf6 {[%emt 0:00:22]} exf6 {[%emt 0:00:49]} 43. Qf4 {[%emt 0:01:22]} Qxd3 {[%emt 0:00:12]} 44. Qxb8+ {[%emt 0:00:04]} Kg7 {[%emt 0:00:33]} 45. Bf2 {[%emt 0:00:18]} Qd2 {[%emt 0:01:20]} 46. h4 {[%emt 0:00:13][%cal Bh3h4,Bh4g5][%mdl 32] Threatens to win with Qc7.} g5 {[%emt 0:01:01]} 47. hxg5 {[%emt 0:00:48] Weighted Error Value: White=0.26 (precise) /Black=0.50} 1-0

[Event "European Women-ch 2023"]
[Site "Petrovac"]
[Date "2023.03.23"]
[Round "6.18"]
[White "Richterova, Natasa"]
[Black "Fataliyeva, Ulviyya"]
[Result "1-0"]
[ECO "D44"]
[WhiteElo "2190"]
[BlackElo "2427"]
[Annotator "TA"]
[PlyCount "93"]
[EventDate "2023.03.15"]
[EventType "swiss"]
[EventCountry "MNE"]
[SourceTitle "playchess.com"]
[Source "ChessBase"]
[SourceQuality "1"]
[TimeControl "40/5400+30:1800+30"]

{[%evp 20,93,67,59,63,52,76,72,84,64,110,105,106,123,435,435,448,441,436,427,369,232,363,342,345,212,213,192,196,210,200,84,72,91,84,85,83,81,79,19,18,21,60,-8,-18,-13,77,81,66,74,107,126,125,94,304,290,275,271,280,281,331,332,272,236,487,487,487,487,446,415,626,625,622,618,571,570]} 1. d4 {[%emt 0:00:02]} Nf6 {[%emt 0:00:08]} 2. c4 {[%emt 0:00:18]} e6 {[%emt 0:00:08]} 3. Nf3 {[%emt 0:00:11]} d5 {[%emt 0:00:12]} 4. Nc3 {[%emt 0:00:06]} Bb4 {[%emt 0:00:21]} 5. Bg5 {[%emt 0:00:52]} dxc4 {[%emt 0:00:33]} 6. e4 {[%emt 0:00:49][%cal Be2e4,Be4e5,Be5f6,Bf6g7][%mdl 32]} b5 {[%emt 0:00:47]} 7. a4 {[%emt 0:01:11]} c6 {[%emt 0:01:33]} 8. e5 {[%emt 0:01:12]} h6 {[%emt 0:00:32]} 9. exf6 {[%emt 0:00:10]} hxg5 {[%emt 0:00:07]} 10. fxg7 {[%emt 0:00:06]} Rg8 {[%emt 0:00:07]} 11. g3 {[%emt 0:00:30]} Bb7 {[%emt 0:08:43] D44: Semi-Slav: Botvinnik System.} 12. Bg2 $1 {[%emt 0:00:21] Ne5 is the strong threat.} (12. axb5 cxb5 13. Bg2 g4 $15) 12... Nd7 {[%emt 0:11:46] The main line 12...Nd7 scores better than 12...c5.} 13. h4 {[%emt 0:00:19]} gxh4 {[%emt 0:01:02] White is better.} 14. Rxh4 {[%emt 0:00:11]} Qb6 {[%emt 0:15:54]} (14... Rxg7 15. Rh8+ Bf8 16. Ne5 (16. axb5 cxb5 17. Nxb5 Qb6 $14) 16... Nxe5 17. dxe5 Qxd1+ 18. Rxd1 $16) (14... Qc7 $14 {was preferrable.}) 15. Ne5 $1 $16 {[%emt 0:12:43]} Rxg7 {[%emt 0:05:18]} 16. Rh8+ {[%emt 0:15:32]} Nf8 $2 {[%emt 0:18:07][%mdl 8192] [#]} (16... Ke7 $16 {is tougher.} 17. Rxa8 Bxa8) 17. a5 $1 $18 {[%emt 0:03:09][%mdl 512]} Qa6 {[%emt 0:05:40] [#]} 18. Qh5 $146 {[%emt 0:03:50] Threatens to win with Qh6.} ({Predecessor:} 18. Qf3 O-O-O 19. Nxf7 Rxd4 20. Qf6 Rxf7 21. Qxf7 Rd8 22. Kf1 Nd7 23. Rxd8+ Kxd8 24. Rd1 {1-0 Cebalo,M (2485)-Sulava,N (2415) CRO-chT Pula 1993 (5)}) 18... O-O-O {[%emt 0:06:20]} 19. Qh6 {[%emt 0:02:12] Repels f6} Rg6 {[%emt 0:00:59]} 20. Nxg6 {[%emt 0:00:26]} fxg6 {[%emt 0:00:05]} (20... Nxg6 $142 21. Rxd8+ Kxd8) 21. Kf1 {[%emt 0:01:39] Black must now prevent Ne4.} Ba8 {[%emt 0:02:52]} 22. Qg7 {[%emt 0:10:10]} Qb7 {[%emt 0:02:53]} 23. Qxb7+ {[%emt 0:00:06]} (23. Qf6 Qe7 24. Qxe7 Bxe7) 23... Bxb7 {[%emt 0:00:41]} 24. a6 {[%emt 0:00:14]} Ba8 {[%emt 0:00:06]} 25. Nxb5 {[%emt 0:02:46]} (25. Ne2 $18) 25... cxb5 $16 {[%emt 0:00:06]} 26. Bxa8 {[%emt 0:00:05] aiming for Bc6.} Kc7 {[%emt 0:01:39] Prevents Bc6.} 27. Bb7 {[%emt 0:03:53]} Rxd4 {[%emt 0:00:24]} 28. Rg8 {[%emt 0:00:46]} Rd2 {[%emt 0:01:06]} 29. Rg7+ {[%emt 0:00:40]} ({Better is} 29. Rb1 $16) 29... Kd6 $11 {[%emt 0:06:17]} 30. Rb1 {[%emt 0:14:59]} Bc5 {[%emt 0:04:02]} 31. Rf7 {[%emt 0:01:08]} (31. Ke1 $1 $14 Rxf2 32. b3) 31... Nd7 {[%emt 0:03:06] And now ...Ne5 would win.} 32. Ke1 {[%emt 0:01:44]} Rd3 {[%emt 0:01:44]} (32... Bb4 $11 {remains equal.} 33. Be4 Ne5) 33. Be4 $36 {[%emt 0:08:34][%csl LRd3,LRg6][%mdl 2048] White is really pushing.} Rd4 {[%emt 0:02:32]} 34. f3 {[%emt 0:00:05] White is much more active.} Ne5 {[%emt 0:00:49]} 35. Rb7 {[%emt 0:00:10]} b4 {[%emt 0:00:30] [#]} 36. Rd1 $1 {[%emt 0:02:55]} Nd3+ $2 {[%emt 0:00:17]} (36... b3 $16 {might work better.}) 37. Bxd3 $18 {[%emt 0:07:17]} cxd3 {[%emt 0:00:07][%mdl 4096] Endgame KRR-KRB} 38. Kd2 {[%emt 0:00:05]} Rd5 {[%emt 0:00:43]} 39. Rh1 {[%emt 0:01:16]} Bf2 {[%emt 0:01:07]} 40. Rhh7 {[%emt 0:00:00]} ({Don't do} 40. Rxb4 Bxg3 41. Rh7 Bf2 $18) 40... Ra5 {[%emt 0:00:00]} 41. Rbd7+ {[%emt 0:07:39]} Ke5 $2 {[%emt 0:02:26]} (41... Kc6 {keeps fighting.} 42. Kxd3 Rxa6) 42. Kxd3 {[%emt 0:01:18]} Rxa6 {[%emt 0:00:39]} 43. f4+ {[%emt 0:01:25]} Kf5 {[%emt 0:00:32]} 44. Ke2 {[%emt 0:01:11] Intending Kf3 and mate.} Bxg3 {[%emt 0:00:10]} (44... Bc5 $142 45. Rc7 Ra5) 45. Kf3 {[%emt 0:00:06][%cal Rh7f7] White is clearly winning.} ({Not} 45. Rxa7 Rxa7 46. Rxa7 Bxf4 $14) 45... Bxf4 {[%emt 0:00:06]} 46. Rhf7+ {[%emt 0:00:15]} ({Weaker is} 46. Rxa7 Rxa7 47. Rxa7 Bc1 $11) 46... Kg5 {[%emt 0:00:27][%cal Oa6a1]} 47. Rxf4 {[%emt 0:00:05] Weighted Error Value: White=0.20 (precise) /Black=0.44} 1-0